Cogmind - Beta 13 X1 @@@ ROGUE MODE // 2023.07.15 @ 22:46:29 Player: Momo Result: Destroyed by XD-GB4(R) with Subdweller Beam Cannon Performance ------------- Evolutions (0) 0 Regions Visited (3) 600 Robots Destroyed (20) 100 Value Destroyed (513) 513 Prototype IDs (0) 0 Alien Tech Used (0) 0 Bonus (0) 0 TOTAL SCORE: 1213 Bonus ------- None Cogmind --------- Core Integrity 0/250 Matter 27/300 Energy 16/100 System Corruption 0% Temperature Cool (9) Movement Core (800) Ox15 Location -10/Subcaves Parts ------- > --- POWER (1) -------- (None) > --- PROPULSION (2) --- (None) > --- UTILITY (2) ------ High-capacity Storage Unit Hardened Light Armor Plating > --- WEAPON (2) ------- Assault Rifle > --- INVENTORY (20) --- VTOL Module Structural Scanner Heavy EM Pulse Gun Heavy EM Pulse Gun Medium Laser Battle Cannon Grenade Launcher Heavy Explosive Trap Heavy Explosive Trap Peak State ------------ > --- POWER ------------ Ion Engine > --- PROPULSION ------- Wheel VTOL Module > --- UTILITY ---------- High-capacity Storage Unit Hardened Light Armor Plating > --- WEAPON ----------- Small Laser Rocket Launcher > --- INVENTORY -------- Wheel VTOL Module Structural Scanner Hardened Light Armor Plating Heavy EM Pulse Gun Heavy EM Pulse Gun Heavy EM Pulse Gun Medium Laser Assault Rifle Battle Cannon Grenade Launcher Heavy Explosive Trap Heavy Explosive Trap Heavy Explosive Trap Heavy Explosive Trap [Rating: 12] Favorites ----------- Power Ion Engine Engine Ion Engine Propulsion Wheel Wheel Wheel Flight Unit VTOL Module Utility High-capacity Storage Unit Device Structural Scanner Storage High-capacity Storage Unit Processor Signal Interpreter Protection Hardened Light Armor Plating Weapon Small Laser Energy Gun Small Laser Ballistic Gun Assault Rifle Launcher Grenade Launcher Build | -11 -10 -10 -10 ------- Run | Jun Mat Min Sub Slots Evolved . | . . . . Power . | . . . . Propulsion . | . . . . Utility . | . . . . Weapon . | . . . . Parts Attached 20 | 4 7 1 8 Power 1 | . 1 . . Engine 1 | . 1 . . Core . | . . . . Reactor . | . . . . Propulsion 5 | 2 1 . 2 Treads . | . . . . Leg . | . . . . Wheel 4 | 2 1 . 1 Hover . | . . . . Flight 1 | . . . 1 Utility 5 | . 4 . 1 Device 1 | . 1 . . Storage 1 | . 1 . . Processor 1 | . 1 . . Hackware . | . . . . Protection 2 | . 1 . 1 Artifact . | . . . . Weapon 9 | 2 1 1 5 Energy Gun 4 | 1 . 1 2 Energy Cannon . | . . . . Ballistic Gun 2 | 1 . . 1 Ballistic Cannon . | . . . . Launcher 3 | . 1 . 2 Special Weapon . | . . . . Impact Weapon . | . . . . Slashing Weapon . | . . . . Piercing Weapon . | . . . . Special Melee Weapon . | . . . . Unidentified Prototypes . | . . . . Parts Lost 12 | . 2 . 10 Power 1 | . . . 1 Propulsion 5 | . 1 . 4 Utility 1 | . . . 1 Weapon 5 | . 1 . 4 Highest Loss Streak 9 | . 1 . 9 To Critical Strikes . | . . . . Average Slot Usage (%) 87 | . 82 87 93 Engine 12 | . 7 14 12 Wheel 26 | . 26 28 21 Device 1 | . 6 . . Storage 12 | . 3 14 14 Processor 1 | . 9 . . Protection 12 | . 3 14 14 Energy Gun 16 | . 14 15 19 Launcher 2 | . 7 . 8 Naked Turns . | . . . . Heaviest Build 56 | 3 51 54 56 Greatest Support 26 | 16 26 20 20 Greatest Overweight (x) 5 | . 2 2 5 Average Overweight (x) 1 | . . 2 2 Largest Inventory Capacity 20 | 5 20 20 20 Average Capacity 17 | 5 8 20 20 Most Carried 17 | 1 11 17 17 Average Carried 14 | . 5 16 16 Final Capacity 20 | 5 20 20 20 Final Carried 17 | 1 11 17 9 Class Distribution -------------------- 100% | Mutant Dominant Class ---------------- Mutant | -10/Materials Mutant | -10/Mines Mutant | -10/Subcaves Resources | -11 -10 -10 -10 ----------- Run | Jun Mat Min Sub Matter Collected 453 | 240 82 87 44 Remotely . | . . . . Salvage Created 418 | . 205 116 97 Parts 30 | . 12 6 12 Haulers Intercepted 2 | . 2 . . Recyclers Shooed . | . . . . Parts Field Recycled . | . . . . Retrieved Matter . | . . . . Parts Self-Destructed 5 | . . . 5 Prevented . | . . . . Kills | -11 -10 -10 -10 ------- Run | Jun Mat Min Sub Combat Hostiles Destroyed 13 | . 2 2 9 Guns 1 | . . 1 . AOE 12 | . 2 1 9 Classes Destroyed 8 | . 4 . 4 Worker 2 | . 1 1 . Builder 2 | . 2 . . Hauler 2 | . 2 . . Turret 1 | . . . 1 Swarmer 4 | . . . 4 Grunt 4 | . 2 2 . Sentry 1 | . . . 1 Subdweller 4 | . . . 4 Best Kill Streak 7 | . 5 3 7 Combat Bots Only 6 | . 2 2 6 Max Kills in Single Turn 2 | . 2 2 2 Gunslinging . | . . . . Exploded 2 | . 1 1 2 Melee . | . . . . Uniques/NPCs Destroyed . | . . . . Combat | -11 -10 -10 -10 -------- Run | Jun Mat Min Sub Damage Taken 1038 | . 170 89 779 Core 260 | . 28 15 217 Absorbed by Shields . | . . . . Core Remaining (%) 100 | 100 . . . Volleys Fired 48 | . 13 7 28 Largest 2 | . 1 2 2 Hottest 85 | . 40 85 85 Shots Fired 57 | . 13 13 31 Gun 20 | . 1 13 6 Cannon . | . . . . Launcher 37 | . 12 . 25 Special . | . . . . Kinetic . | . . . . Thermal 11 | . 1 7 3 Explosive 37 | . 12 . 25 Electromagnetic 9 | . . 6 3 Robot Hit Streak 10 | . 3 5 10 Robot Miss Streak 2 | . 1 1 2 Penetration Max . | . . . . Secondary Targets . | . . . . Shots Hit Robots 38 | . 6 11 21 Core Hits 39 | . 14 4 21 Critical Kills . | . . . . Critical Parts Destroyed . | . . . . Critical Strikes 1 | . . 1 . Corrupt 1 | . . 1 . Melee Attacks . | . . . . Impact . | . . . . Slashing . | . . . . Piercing . | . . . . Sneak Attacks . | . . . . Combat Hostiles . | . . . . Follow-up Attacks . | . . . . Damage Inflicted 1931 | . 477 244 1210 Guns 215 | . . 154 61 Cannons . | . . . . Explosions 1716 | . 477 90 1149 Melee . | . . . . Ramming . | . . . . Kinetic . | . . . . Thermal 167 | . . 145 22 Explosive 1626 | . 477 . 1149 Electromagnetic 138 | . . 99 39 Impact . | . . . . Slashing . | . . . . Piercing . | . . . . Highest Corruption . | . . . . Average Corruption . | . . . . Corruption Purged . | . . . . Corruption Blocked . | . . . . Overload Shots . | . . . . Overflow Damage 35 | . 28 . 7 Projectiles . | . . . . Explosions 35 | . 28 . 7 Melee . | . . . . Knockbacks . | . . . . Impact . | . . . . Kinetic . | . . . . Secondary . | . . . . Self-Inflicted Damage 173 | . 149 . 24 Shots 5 | . 4 . 1 Rammed . | . . . . Targets Rammed . | . . . . Kicked . | . . . . Crushed . | . . . . Highest Temperature 306 | . 10 306 10 Average Temperature 122 | . 7 145 5 Received Heat Transfer 345 | . 12 72 261 Siege Activations . | . . . . Robots Corrupted . | . . . . Combat Hostiles . | . . . . Parts Fried . | . . . . Impact Corruptions . | . . . . Robots Melted . | . . . . Combat Hostiles . | . . . . Parts Melted . | . . . . Heat Transferred 175 | . . 125 50 Parts Sabotaged . | . . . . Parts Stolen . | . . . . Parts Stripped . | . . . . Power Chain Reactions 1 | . . 1 . Missiles Intercepted . | . . . . Alert | -11 -10 -10 -10 ------- Run | Jun Mat Min Sub Peak Influence 212 | . 212 82 . Initial 82 | . . 82 . Average 57 | . 120 44 . Maximum Alert Level 1 | . 1 . . Low Security (%) 99 | 100 97 100 . Level 1 . | . 2 . . Level 2 . | . . . . Level 3 . | . . . . Level 4 . | . . . . Level 5 . | . . . . High Security . | . . . . Max Security . | . . . . Squads Dispatched 3 | . 3 . . Investigation . | . . . . Extermination . | . . . . Reinforcement 3 | . 3 . . Assault . | . . . . Garrison . | . . . . Intercept . | . . . . Searches Triggered . | . . . . Construction Impeded . | . . . . Haulers Reinforced . | . . . . Active Scanning Responses . | . . . . Cargo Convoy Interrupts . | . . . . Stealth | -11 -10 -10 -10 --------- Run | Jun Mat Min Sub Distress Signals 1 | . 1 . . Communications Jammed . | . . . . Distress Signals . | . . . . Times Spotted 44 | . 9 1 34 Peak Tracking Total 5 | . 5 1 4 Tactical Retreats 4 | . 1 . 3 Traps | -11 -10 -10 -10 ------- Run | Jun Mat Min Sub Traps Triggered 1 | . . . 1 Indirectly . | . . . . Trap Hack Attempts . | . . . . Triggered . | . . . . Disarmed . | . . . . Reprogrammed . | . . . . Reused 1 | . . . 1 Traps Extracted . | . . . . Installed 2 | . . . 2 Triggered . | . . . . Most Traps Carried 4 | . . 4 4 Machines | -11 -10 -10 -10 ---------- Run | Jun Mat Min Sub Machines Disabled 10 | . 4 2 4 Max in Single Turn 2 | . 1 2 2 Machines Repaired . | . . . . Machines Sabotaged . | . . . . Overloaded Fab Kills . | . . . . Hacking | -11 -10 -10 -10 --------- Run | Jun Mat Min Sub Machines Accessed . | . . . . Terminals . | . . . . Fabricators . | . . . . Repair Stations . | . . . . Recycling Units . | . . . . Scanalyzers . | . . . . Garrison Access . | . . . . Total Hacks . | . . . . Successful . | . . . . Failed . | . . . . Catastrophic . | . . . . Database Lockouts . | . . . . Manual . | . . . . Terminals . | . . . . Fabricators . | . . . . Repair Stations . | . . . . Recycling Units . | . . . . Scanalyzers . | . . . . Garrison Access . | . . . . Terminal Hacks . | . . . . Fabricator Hacks . | . . . . Repair Station Hacks . | . . . . Recycling Unit Hacks . | . . . . Scanalyzer . | . . . . Garrison Access Hacks . | . . . . Unauthorized Hacks . | . . . . Terminals . | . . . . Fabricators . | . . . . Repair Stations . | . . . . Recycling Units . | . . . . Scanalyzers . | . . . . Garrison Access . | . . . . Data Cores Recovered . | . . . . Used . | . . . . Hacking Detections . | . . . . Full Trace Events . | . . . . Feedback Events . | . . . . Feedback Blocked . | . . . . Robot Schematics Acquired . | . . . . Robots Built . | . . . . Authchips . | . . . . Time . | . . . . Total Robot Build Rating . | . . . . Part Schematics Acquired . | . . . . Parts Built . | . . . . Authchips . | . . . . Time . | . . . . Total Part Build Rating . | . . . . Parts Repaired . | . . . . Time . | . . . . Parts Recycled . | . . . . Recycled Matter . | . . . . Retrieved Matter . | . . . . Retrieved Components . | . . . . Parts Scanalyzed . | . . . . Part Schematics Acquired . | . . . . Parts Damaged . | . . . . Bothacking | -11 -10 -10 -10 ------------ Run | Jun Mat Min Sub Used RIF Installer . | . . . . Robots Hacked . | . . . . Non-combat . | . . . . Combat . | . . . . Robot Hacks Applied . | . . . . Relay Couplers Released . | . . . . Fabnet Peak Effective % . | . . . . Robots Rewired . | . . . . Allies Hacked . | . . . . Hacks Repelled . | . . . . Allies | -11 -10 -10 -10 -------- Run | Jun Mat Min Sub Total Allies . | . . . . Largest Group . | . . . . Highest-Rated Group . | . . . . Highest-Rated Ally . | . . . . Total Orders . | . . . . Ally Attacks . | . . . . Total Damage . | . . . . Kills . | . . . . Allies Corrupted . | . . . . Allies Melted . | . . . . Intel | -11 -10 -10 -10 ------- Run | Jun Mat Min Sub Robot Analysis Total . | . . . . Derelict Logs Recovered 1 | . . 1 . Drone Launches . | . . . . Drone Recoveries . | . . . . Exploration | -11 -10 -10 -10 ------------- Run | Jun Mat Min Sub Turns Passed 1456 | 33 229 902 292 Spaces Moved 1058 | 51 234 589 184 Core 126 | 49 77 . . Treads . | . . . . Legs . | . . . . Wheels 932 | 2 157 589 184 Hover . | . . . . Flight . | . . . . Fastest Speed 50 | 50 50 110 110 Average Speed 101 | 51 77 110 120 Slowest Speed 155 | 100 110 110 155 Overloaded Moves . | . . . . Propulsion Burnouts . | . . . . Robots Hopped . | . . . . Cave-ins Triggered . | . . . . Exploration Rate (%) 44 | 4 56 100 17 Regions Visited 3 Branch Regions 2 Pre-discovered Areas 1 | . . . 1 Known Exits Taken . | . . . . Unknown Exits Taken 3 | 1 1 1 . Scrap Searched 1 | . . 1 . Spaces Dug 11 | . . . 11 Terrain Destroyed 171 | . 55 3 113 Melee . | . . . . Projectile . | . . . . AOE 171 | . 55 3 113 Terrain Rammed . | . . . . Walls Destroyed . | . . . . Machines Disabled . | . . . . Actions | -11 -10 -10 -10 --------- Run | Jun Mat Min Sub Total 1377 | 55 268 830 224 Wait 227 | . . 227 . Move 1055 | 50 233 588 184 Hop . | . . . . Pick Up 20 | 1 12 7 . Fast Attach 9 | 4 5 . . Attach 7 | . . 1 6 Detach . | . . . . Swap 4 | . 2 . 2 Drop 5 | . 3 . 2 Fire 48 | . 13 7 28 Melee . | . . . . Ram . | . . . . Kick . | . . . . Crush . | . . . . Escape Stasis . | . . . . Rewire . | . . . . Trap 2 | . . . 2 Miscellaneous . | . . . . Route ------- -11/Junkyard -10/Materials (discovered 3 exits: [*Mat x2] / [*Min]) -10/Mines (discovered 3 exits: [*Mat x2] / [*Sub]) -10/Subcaves (discovered 1 exit: [*Rec]) History --------- Turn | Location | Event 8 | -11/Junkyard | Discovered new exit (range 16) 34 | -11/Junkyard | Entered Materials 85 | -10/Materials | Discovered new exit (range 15) 225 | -10/Materials | Discovered new exit (range 5) 256 | -10/Materials | Discovered new exit (range 7) 263 | -10/Materials | Entered Mines 279 | -10/Mines | Discovered new exit (range 9) 303 | -10/Mines | Build established: Mutant 348 | -10/Mines | Found a hidden stash of uninstalled traps 431 | -10/Mines | Received a Rocket Launcher from a helpful Derelict 539 | -10/Mines | Learned Materials terminal intel 579 | -10/Mines | A weapon hastily lodged in a ceiling crevice suddenly fell to the ground 710 | -10/Mines | Discovered new exit (range 12) 1112 | -10/Mines | Discovered new exit (range 4) 1165 | -10/Mines | Entered Subcaves 1234 | -10/Subcaves | Learned location of Zion (-6) 1234 | -10/Subcaves | Met a Zionite searching for "candidates" 1260 | -10/Subcaves | A swath of the cavern ceiling suddenly collapsed 1395 | -10/Subcaves | Discovered new exit (range 12) 1451 | -10/Subcaves | Core integrity fell below 50% 1456 | -10/Subcaves | Core integrity fell below 20% 1457 | -10/Subcaves | Destroyed by XD-GB4(R) with Subdweller Beam Cannon Last Messages --------------- 01425_ HH-8N4(R) destroyed. 01426_ XD-GB4(R): "ARGHSUB!" 01427_ 18-Q24(R) affixes Scrap Shield Fragment to Scrap Shield. 01427_ 18-Q24(R) destroyed. 01428_ Ion Engine destroyed. 01429_ The unstable cave ceiling collapses. 01437_ Dropped Heavy Explosive Trap. 01437_ Installed Heavy Explosive Trap. 01441_ Rocket Launcher destroyed. 01441_ Dropped Heavy Explosive Trap. 01442_ The unstable cave ceiling collapses. 01442_ Installed Heavy Explosive Trap. 01445_ I8-D0U(R) triggered Heavy Explosive Trap. 01445_ An explosion rips through the floor. 01445_ Wheel destroyed. 01446_ The unstable cave ceiling collapses. 01450_ Hrd. Light Armor Plating destroyed. 01452_ VTOL Module destroyed. 01453_ Hvy. EM Pulse Gun destroyed. 01454_ Sml. Laser destroyed. Map ----- +----------------------------------------------------+ | ?????????????????????????????????????# # | | ?????????????????????????????????????#### % ## | | ????????????????????????????????????????## ##% # | | ?????????????????????????????????????????##?# % # | | ????????????????????????????????????????????## ## | | ???????????????????????####??????????????????# #? | | ??????????????????????? ??????????????##% ## | | ?????????????????????? ????????????# # | | ?????????????????????? ??????????# ## | | ?????????????????????? ] ! ?????????# # | | ?????????????????????? * ] ?"# # # # | | ??????????????????????# ! " | | ?????????????????????### """ | | ????????????????????## # # """""#""" | | ???????????????????## # < # "" """ ## | | ???????????????????# ### ""####? | | ???????????????????## R# ## # ## ???? | | ??????????????????## # ###?# ####? | | ??????????????????# ?## ???#"" #? | | ??????????????????# #?## #?# #####^"" #?# | | ??????????????????# #?# ### # # ???# | | ??????????????????# ### ## #????# | | ??????????????????# # # # #?????# | | ????????????????### # #??????# | | ????????????????# R ### ######?? | | ????????????????### @ ## ##? | | ??????????????????# ## ## | | ???????????????# # | | ??????????????# ### "# # ## | | ?????????????# ## "### # | | ???????????? ## " ## ## | | ??????????? ########## ## | | ???????????##### ##????????## # | | ???????????????# ####??????????# | | ???????????????# ### ##????????????# # | | ???????????????# ## #??# ###?????????????## # | | ???????????????# ??? ##????????????????#### | | ???????????????? ? # ??# #????????????????????? | | ??????????????????# ?? ????????????????????? | | ???????????????????????#### ????????????????????? | | ??????????????????????????# ?????????????????????? | | ??????????????????????????? ?????????????????????? | | ?????????????????????????????????????????????????? | | ?????????????????????????????????????????????????? | | ?????????????????????????????????????????????????? | | ?????????????????????????????????????????????????? | | ?????????????????????????????????????????????????? | | ?????????????????????????????????????????????????? | | ?????????????????????????????????????????????????? | | ?????????????????????????????????????????????????? | +----------------------------------------------------+ Best States ------------- Heat Dissipation 25 Energy Generation 10 Energy Capacity 250 Matter Stores 300 Matter Capacity 300 Sight Range 16 Terrain Scan Density 10 Armor Coverage 150 Evasion (%) 50 Item Schematics ----------------- None Robot Schematics ------------------ None Fabricated ------------ Nothing Alien Tech Used ----------------- None Achievements -------------- None Challenges ------------ None Game ------ Seed AssaultColdBuckler Manual? 0 Play Time 00:10:59 Cumulative 425.6 hours Start 2023.07.15 @ 22:38:14 End 2023.07.15 @ 22:46:29 Sessions 1 Manual Loads 0 Difficulty Rogue Special Mode None Game No. 208 Rogue 204 Adventurer 0 Explorer 4 Win Type - Total 24 Types 8/1/2/5/1/2/3/1/1 Lore% 83 Gallery% 87 Achievement% 80 Wizard Run 0 Options --------- ASCII 0 Keyboard 0 Movement Mouse Keybinds 0 Fullscreen 1 Font 18/SmallcapsGlow Map View 76x50 Tactical HUD 1 Map Filters NONE Filters NONE Steam 1 RUN: 35a9504e-1289-4b80-ae20-82ba5b17bda9